bitfinex/quotes_BTCUSD_20240723
["timestamp","ask_amount","ask_price","bid_price","bid_amount"]
[1721705686409,1.21419595,67740.0,67739.0,0.028]
[1721705687661,1.21519595,67740.0,67739.0,0.034]
[1721705688245,1.21419595,67740.0,67739.0,0.028]
[1721705688465,1.21419595,67740.0,67739.0,0.035]
[1721705688872,1.21419595,67740.0,67739.0,0.1759]
[1721705689070,1.36369151,67740.0,67739.0,0.1759]
[1721705689276,1.36350834,67740.0,67739.0,0.1799]
[1721705689880,1.37230641,67740.0,67739.0,0.1799]
[1721705690744,1.22281675,67740.0,67739.0,0.1799]
[1721705691388,1.37233001,67740.0,67739.0,0.1799]
[1721705692007,1.22281675,67740.0,67739.0,0.1799]
[1721705692436,1.2228053,67740.0,67739.0,0.1799]
[1721705695609,1.22293721,67740.0,67739.0,0.1799]
[1721705696015,1.14215907,67740.0,67739.0,0.1799]
[1721705696179,1.22292199,67740.0,67739.0,0.1799]
[1721705696770,1.22342199,67740.0,67739.0,0.1799]
[1721705698674,1.22351364,67740.0,67739.0,0.1799]
[1721705700639,1.37305686,67740.0,67739.0,0.1799]
[1721705701210,1.3730295,67740.0,67739.0,0.1799]
[1721705703353,0.92823967,67740.0,67739.0,0.1799]
[1721705705360,0.92873967,67740.0,67739.0,0.1799]
[1721705707438,0.92522962,67740.0,67739.0,0.1799]
[1721705707845,0.84791307,67740.0,67739.0,0.1799]
[1721705708046,0.92522947,67740.0,67739.0,0.1799]
[1721705710734,0.62635385,67740.0,67739.0,0.19789]
[1721705711185,0.75927538,67740.0,67739.0,0.198814]
[1721705711611,0.75927538,67740.0,67739.0,0.18626259]
[1721705712020,0.83547538,67740.0,67739.0,0.18626259]
[1721705712233,0.83547538,67740.0,67739.0,0.180824]
[1721705712234,1.13072138,67740.0,67739.0,0.180824]
[1721705713114,0.83547538,67740.0,67739.0,0.180824]
[1721705713583,0.83547538,67740.0,67739.0,0.176824]
[1721705713762,0.83545187,67740.0,67739.0,0.187824]
[1721705713969,1.13069787,67740.0,67739.0,0.187824]
[1721705714171,1.13069787,67740.0,67739.0,0.184824]
[1721705714593,0.99779985,67740.0,67739.0,0.130624]
[1721705714807,0.99790993,67740.0,67739.0,0.130624]
[1721705715027,1.44263875,67740.0,67739.0,0.130624]
[1721705715455,1.44263875,67740.0,67739.0,0.13026171]
[1721705716139,1.29315593,67740.0,67739.0,0.13026171]
[1721705716790,1.21935907,67740.0,67739.0,0.13026171]
[1721705716990,1.29307486,67740.0,67739.0,0.13026171]
[1721705717197,0.99782886,67740.0,67739.0,0.13026171]
[1721705717411,0.99782951,67740.0,67739.0,0.13026171]
[1721705717623,1.29307551,67740.0,67739.0,0.13026171]
[1721705717855,1.44251005,67740.0,67739.0,0.13026171]
[1721705718054,1.29307551,67740.0,67739.0,0.13026171]
[1721705718875,1.44251005,67740.0,67739.0,0.13026171]
[1721705719729,1.44260365,67740.0,67739.0,0.13026171]
[1721705719943,1.4426074,67740.0,67739.0,0.13026171]
[1721705720918,1.44261024,67740.0,67739.0,0.13026171]
[1721705721899,1.44261024,67740.0,67739.0,0.102624]
[1721705722118,1.44261024,67740.0,67739.0,0.021924]
[1721705722119,1.29312025,67740.0,67739.0,0.021924]
[1721705722331,1.35262025,67740.0,67739.0,0.021924]
[1721705723146,1.35199989,67740.0,67739.0,0.021924]
[1721705725253,1.29249989,67740.0,67739.0,0.104924]
[1721705726382,1.29268984,67740.0,67739.0,0.104924]
[1721705726804,1.29269119,67740.0,67739.0,0.104924]
[1721705729525,1.29282695,67740.0,67739.0,0.104924]
[1721705729882,1.21662695,67740.0,67739.0,0.19676171]
[1721705730483,1.3661361,67740.0,67739.0,0.19676171]
[1721705731535,1.0708997,67740.0,67739.0,0.19676171]
[1721705731773,0.23088895,67740.0,67739.0,0.19676171]
[1721705731982,0.23088895,67740.0,67739.0,0.2065426]
[1721705732183,0.15742107,67740.0,67739.0,0.2065426]
[1721705732769,0.45266707,67740.0,67739.0,0.2065426]
[1721705732975,0.45266707,67740.0,67739.0,0.19676171]
[1721705733171,0.45266707,67740.0,67739.0,0.2065426]
[1721705733401,0.25742107,67740.0,67739.0,0.2065426]
[1721705733536,0.10979807,67740.0,67739.0,0.2065426]
[1721705733737,0.25742107,67740.0,67739.0,0.2065426]
[1721705735874,0.10979807,67740.0,67739.0,0.2065426]
[1721705736076,0.101,67740.0,67739.0,0.2065426]
[1721705736274,0.101,67740.0,67739.0,0.34438671]
[1721705736275,0.001,67740.0,67739.0,0.34438671]
[1721705736503,0.11171891,67740.0,67739.0,0.6494084]
[1721705737473,0.001,67740.0,67739.0,0.6494084]
[1721705738680,0.11170563,67740.0,67739.0,0.3541584]
[1721705739297,0.001,67740.0,67739.0,0.3541584]
[1721705739706,0.11170563,67740.0,67739.0,0.3541584]
[1721705740562,0.001,67740.0,67739.0,0.3541584]
[1721705740937,0.11170563,67740.0,67739.0,0.3541584]
[1721705741414,0.001,67740.0,67739.0,0.3541584]
[1721705744393,0.08953294,67740.0,67739.0,0.3541584]
[1721705744810,0.001,67740.0,67739.0,0.3541584]
[1721705746520,0.08952079,67740.0,67739.0,0.3541584]
[1721705747882,0.08951928,67740.0,67739.0,0.3541584]
[1721705748090,0.08951928,67740.0,67739.0,0.6494084]
[1721705749369,0.001,67740.0,67739.0,0.6494084]
[1721705749545,0.06738877,67740.0,67739.0,0.6494084]
[1721705750905,0.06738051,67740.0,67739.0,0.6494084]
[1721705751314,0.06738051,67740.0,67739.0,0.9446584]
[1721705751506,0.0673796,67740.0,67739.0,0.9446584]
[1721705751826,0.0673796,67740.0,67739.0,0.6494084]
[1721705752405,0.001,67740.0,67739.0,0.6494084]
[1721705756973,0.001,67740.0,67739.0,0.6994084]
[1721705757179,0.001,67740.0,67739.0,1.0708584]
[1721705757388,0.001,67740.0,67739.0,1.3661084]
[1721705757585,0.001,67740.0,67739.0,1.0708584]
[1721705758344,0.001,67740.0,67739.0,1.0608584]
[1721705758749,0.001,67740.0,67739.0,1.0248584]
[1721705758952,0.001,67740.0,67739.0,1.0138584]
[1721705759323,0.001,67740.0,67739.0,1.0278584]
[1721705759678,0.001,67740.0,67739.0,0.9376584]
[1721705760049,0.001,67740.0,67739.0,0.9516584]
[1721705762129,0.001,67740.0,67739.0,1.06448085]
[1721705762538,0.001,67740.0,67739.0,0.9516584]
[1721705762735,0.001,67740.0,67739.0,1.0644799]
[1721705762945,0.001,67740.0,67739.0,0.9516584]
[1721705763216,0.001,67740.0,67739.0,1.064537]
[1721705763398,0.001,67740.0,67739.0,1.359787]
[1721705765047,0.001,67740.0,67739.0,1.409787]
[1721705765625,0.001,67740.0,67739.0,1.40965699]
[1721705765826,0.001,67740.0,67739.0,1.40956342]
[1721705766054,0.001,67740.0,67739.0,1.06431342]
[1721705766230,0.001,67740.0,67739.0,0.9516584]
[1721705766607,0.001,67740.0,67739.0,1.2469084]
[1721705767727,0.001,67740.0,67739.0,0.9516584]
[1721705768172,0.001,67740.0,67739.0,0.6564084]
[1721705768411,0.001,67740.0,67739.0,0.3611584]
[1721705768619,0.001,67740.0,67739.0,0.2135334]
[1721705769022,0.001,67740.0,67739.0,0.1493334]
[1721705772722,0.04519086,67740.0,67739.0,0.1493334]
[1721705773247,0.0538646,67740.0,67739.0,0.1493334]
[1721705773457,0.00967374,67740.0,67739.0,0.1493334]
[1721705773664,0.001,67740.0,67739.0,0.1493334]
[1721705774077,0.00184,67740.0,67739.0,0.1493334]
[1721705774301,0.04605311,67740.0,67739.0,0.1493334]
[1721705774531,0.00184,67740.0,67739.0,0.1493334]
[1721705774952,0.00184,67740.0,67739.0,0.2099334]
[1721705775959,0.06818897,67740.0,67739.0,0.2099334]
[1721705777173,0.00184,67740.0,67739.0,0.2099334]
[1721705779334,0.09034722,67740.0,67739.0,0.2099334]
[1721705780440,0.96416222,67740.0,67739.0,0.0663334]
[1721705780661,0.94682477,67740.0,67739.0,0.0663334]
[1721705780836,0.94682477,67740.0,67739.0,0.05656171]
[1721705781251,1.04682477,67740.0,67739.0,0.05656171]
[1721705781465,1.04682477,67740.0,67739.0,0.04256171]
[1721705781814,0.75213886,67740.0,67739.0,0.04256171]
[1721705782014,0.75213886,67740.0,67739.0,0.02856171]
[1721705782242,0.69263886,67740.0,67739.0,0.02856171]
[1721705782401,0.69263886,67740.0,67739.0,0.05656171]
[1721705782608,0.916155,67740.0,67739.0,0.05656171]
[1721705782807,0.916155,67740.0,67739.0,0.04256171]
[1721705783045,0.98833198,67740.0,67739.0,0.05656171]
[1721705783266,0.916155,67740.0,67739.0,0.05656171]
[1721705783608,0.916155,67740.0,67739.0,0.04256171]
[1721705784011,0.916155,67740.0,67739.0,0.05656171]
[1721705785116,0.620909,67740.0,67739.0,0.05656171]
[1721705785619,0.916155,67740.0,67739.0,0.05656171]
[1721705788557,0.620909,67740.0,67739.0,0.05656171]
[1721705788925,0.916155,67740.0,67739.0,0.05656171]
[1721705789963,0.9885844,67740.0,67739.0,0.05656171]
[1721705790165,0.9885844,67740.0,67739.0,0.028924]
[1721705790372,1.3453304,67740.0,67739.0,0.05656171]
[1721705790575,1.3453304,67740.0,67739.0,0.028924]
[1721705791180,1.34480198,67740.0,67739.0,0.014924]
[1721705791595,1.34480198,67740.0,67739.0,0.026924]
[1721705792457,1.34480198,67740.0,67739.0,0.012924]
[1721705792659,1.34480198,67740.0,67739.0,0.023924]
[1721705793102,1.34480198,67740.0,67739.0,0.04056171]
[1721705793305,1.34480198,67740.0,67739.0,0.04956171]
[1721705793527,1.34480198,67740.0,67739.0,0.04056171]
[1721705793675,1.34480198,67740.0,67739.0,0.012924]
[1721705794087,1.34480198,67740.0,67739.0,0.009924]
[1721705794291,1.34484685,67740.0,67739.0,0.009924]
[1721705794553,1.34484685,67740.0,67739.0,0.019924]
[1721705794922,1.34484685,67740.0,67739.0,0.03756171]
[1721705795123,1.34484685,67740.0,67739.0,0.009924]
[1721705795325,1.34484685,67740.0,67739.0,0.019924]
[1721705795532,1.34484685,67740.0,67739.0,0.04756171]
[1721705796145,1.47744827,67740.0,67739.0,0.04756171]
[1721705796515,1.47744827,67740.0,67739.0,0.019924]
[1721705797509,1.47752029,67740.0,67739.0,0.019924]
[1721705797884,1.47751943,67740.0,67739.0,0.019924]
[1721705798289,1.34491235,67740.0,67739.0,0.019924]
[1721705800424,1.3446463,67740.0,67739.0,0.019924]
[1721705803604,1.3447731,67740.0,67739.0,0.019924]
[1721705804800,1.3427731,67740.0,67739.0,0.019924]
[1721705805008,1.47529252,67740.0,67739.0,0.019924]
[1721705805413,1.41579252,67740.0,67739.0,0.160624]
[1721705806737,1.34392582,67740.0,67739.0,0.160624]
[1721705806964,1.41597096,67740.0,67739.0,0.160624]
[1721705808232,1.41597096,67740.0,67739.0,0.12746171]
[1721705808233,0.61675414,67740.0,67739.0,0.12746171]
[1721705808443,0.28444225,67740.0,67739.0,0.19226171]
[1721705808672,0.28444225,67740.0,67739.0,0.20200866]
[1721705808673,0.19020426,67740.0,67739.0,0.20200866]
[1721705808875,0.06811563,67740.0,67739.0,0.20200866]
[1721705809309,0.00184,67740.0,67739.0,0.20200866]
[1721705809790,0.00184,67740.0,67739.0,0.19200866]
[1721705810014,0.06812145,67740.0,67739.0,0.19200866]
[1721705810225,0.10184,67740.0,67739.0,0.19700866]
[1721705810865,0.10184,67740.0,67739.0,0.21100866]
[1721705811297,0.00184,67740.0,67739.0,0.21100866]
[1721705812107,0.06814261,67740.0,67739.0,0.21100866]
[1721705812318,0.0681544,67740.0,67739.0,0.21100866]
[1721705812748,0.00184,67740.0,67739.0,0.21100866]
[1721705812951,0.10184,67740.0,67739.0,0.21100866]
[1721705813785,0.19026903,67740.0,67739.0,0.21100866]
[1721705813998,0.09026903,67740.0,67739.0,0.21100866]
[1721705814202,0.33789203,67740.0,67739.0,0.21100866]
[1721705814413,0.61665677,67740.0,67739.0,0.14620866]
[1721705814617,0.61665677,67740.0,67739.0,0.05656171]
[1721705814618,0.91190277,67740.0,67739.0,0.05656171]
[1721705815658,1.20714877,67740.0,67739.0,0.05656171]
[1721705816078,1.20691956,67740.0,67739.0,0.05656171]
[1721705816285,1.33959566,67740.0,67739.0,0.05656171]
[1721705818924,1.135201,67740.0,67739.0,0.05656171]
[1721705819052,1.33959034,67740.0,67739.0,0.05656171]
[1721705819262,1.2068934,67740.0,67739.0,0.05656171]
[1721705819848,1.2068934,67740.0,67739.0,0.028924]
[1721705819849,1.33959767,67740.0,67739.0,0.028924]
[1721705820053,1.2068934,67740.0,67739.0,0.028924]
[1721705820253,1.2683934,67740.0,67739.0,0.028924]
[1721705820461,1.5636394,67740.0,67739.0,0.028924]
[1721705820993,1.66838977,67740.0,67739.0,0.028924]
[1721705821308,1.66805535,67740.0,67739.0,0.028924]
[1721705821466,1.5636394,67740.0,67739.0,0.014924]
[1721705821668,1.66773105,67740.0,67739.0,0.014924]
[1721705821892,1.56331579,67740.0,67739.0,0.015924]
[1721705822092,1.56331579,67740.0,67739.0,0.001924]
[1721705822509,2.28358673,67740.0,67739.0,0.009]
[1721705822710,2.46411145,67740.0,67739.0,0.009]
[1721705822934,1.033574,67726.0,67725.0,0.02763771]
[1721705823140,1.28114279,67726.0,67725.0,0.02763771]
[1721705824332,1.28105909,67726.0,67725.0,0.02763771]
[1721705824531,1.28105909,67726.0,67724.0,0.0758]
[1721705824532,1.033588,67725.0,67724.0,0.10343771]
[1721705824807,1.20487309,67725.0,67724.0,0.10343771]
[1721705825211,0.60962907,67725.0,67721.0,0.02763771]
[1721705825427,0.60962907,67725.0,67718.0,0.000924]
[1721705825428,0.147669,67719.0,67718.0,0.000924]
[1721705825637,1.18486051,67719.0,67718.0,0.000924]
[1721705825849,1.28116809,67719.0,67718.0,0.000924]
[1721705826274,1.72346874,67719.0,67718.0,0.000924]
[1721705826479,1.98496874,67719.0,67718.0,0.000924]
[1721705826887,2.13422542,67719.0,67718.0,0.000924]
[1721705827095,1.98496874,67719.0,67718.0,0.000924]
[1721705827309,2.13439686,67719.0,67718.0,0.000924]
[1721705827518,2.13439689,67719.0,67718.0,0.023924]
[1721705827718,2.00070333,67719.0,67718.0,0.023924]
[1721705828123,2.20640333,67719.0,67718.0,0.023924]
[1721705828923,2.15640333,67719.0,67718.0,0.023924]
[1721705829147,2.00944068,67719.0,67718.0,0.023924]
[1721705829281,1.85174068,67719.0,67718.0,0.023924]
[1721705830401,1.85203887,67719.0,67718.0,0.023924]
[1721705830618,1.59253755,67719.0,67718.0,0.023924]
[1721705830826,1.72493377,67719.0,67718.0,0.023924]
[1721705831044,1.59253755,67719.0,67718.0,0.023924]
[1721705831660,1.72491548,67719.0,67718.0,0.023924]
[1721705832463,1.74835409,67719.0,67718.0,0.023924]
[1721705833315,1.67648725,67719.0,67718.0,0.023924]
[1721705833523,1.60147783,67719.0,67718.0,0.023924]
[1721705833915,1.60147816,67719.0,67718.0,0.023924]
[1721705836141,1.5295246,67719.0,67718.0,0.023924]
[1721705836270,1.60153525,67719.0,67718.0,0.023924]
[1721705836816,1.60153165,67719.0,67718.0,0.023924]
[1721705839495,1.7484943,67719.0,67718.0,0.023924]
[1721705839890,1.67648725,67719.0,67718.0,0.023924]
[1721705840063,1.7488987,67719.0,67718.0,0.023924]
[1721705843018,1.67648725,67719.0,67718.0,0.023924]
[1721705843239,1.71224574,67719.0,67718.0,0.023924]
[1721705843445,1.60210553,67719.0,67718.0,0.023924]
[1721705843670,1.23056753,67719.0,67718.0,0.163424]
[1721705843880,1.39487328,67719.0,67718.0,0.163424]
[1721705844093,1.30676753,67719.0,67718.0,0.163424]
[1721705844293,1.39486434,67719.0,67718.0,0.163424]
[1721705845275,1.39486434,67719.0,67718.0,0.103324]
[1721705846064,1.32228341,67719.0,67718.0,0.103324]
[1721705846265,1.30739893,67719.0,67718.0,0.103324]
[1721705846472,1.2341866,67719.0,67718.0,0.103324]
[1721705846686,1.3692653,67719.0,67718.0,0.103324]
[1721705847672,1.6646033,67719.0,67718.0,0.023924]
[1721705849158,1.7530291,67719.0,67718.0,0.023924]
[1721705849336,1.69079181,67719.0,67718.0,0.023924]
[1721705849703,1.69081495,67719.0,67718.0,0.023924]
[1721705850853,1.39547695,67719.0,67718.0,0.023924]
[1721705851275,1.30738855,67719.0,67718.0,0.106824]
[1721705851487,1.30738855,67719.0,67718.0,0.173324]
[1721705851827,1.35142885,67719.0,67718.0,0.173324]
[1721705852415,1.35119873,67719.0,67718.0,0.173324]
[1721705852635,1.30716012,67719.0,67718.0,0.173324]
[1721705853457,1.37321803,67719.0,67718.0,0.106824]
[1721705854402,1.30716012,67719.0,67718.0,0.106824]
[1721705854606,1.41330139,67719.0,67718.0,0.106824]
[1721705855006,1.47936805,67719.0,67718.0,0.106824]
[1721705855263,1.41330139,67719.0,67718.0,0.106824]
[1721705855456,1.5295246,67719.0,67718.0,0.106824]
[1721705855665,1.41330876,67719.0,67718.0,0.106824]
[1721705855896,1.50141687,67719.0,67718.0,0.106824]
[1721705856893,1.41330876,67719.0,67718.0,0.106824]
[1721705857320,1.52344389,67719.0,67718.0,0.106824]
[1721705858306,1.41330876,67719.0,67718.0,0.106824]
[1721705858517,1.2341866,67719.0,67718.0,0.106824]
[1721705858867,1.41310897,67719.0,67718.0,0.106824]
[1721705859090,1.2341866,67719.0,67718.0,0.106824]
[1721705859303,1.41312001,67719.0,67718.0,0.106824]
[1721705861816,1.70847307,67719.0,67718.0,0.106824]
[1721705862020,1.2341866,67719.0,67718.0,0.106824]
[1721705862199,1.54558453,67719.0,67718.0,0.106824]
[1721705862396,1.41313443,67719.0,67718.0,0.106824]
[1721705862600,1.54563745,67719.0,67718.0,0.106824]
[1721705863177,1.56009708,67719.0,67718.0,0.106824]
[1721705863381,1.56009708,67719.0,67718.0,0.023924]
[1721705863582,1.56009708,67719.0,67713.0,0.0818]
[1721705863583,0.443038,67714.0,67713.0,0.0818]
[1721705863784,0.87167525,67714.0,67713.0,0.0818]
[1721705863993,0.87167525,67714.0,67713.0,0.06345063]
[1721705863994,1.75775225,67714.0,67713.0,0.06345063]
[1721705864192,1.85968992,67714.0,67713.0,0.06345063]
[1721705864603,1.68074209,67714.0,67713.0,0.06345063]
[1721705864807,1.85889015,67714.0,67713.0,0.06345063]
[1721705866227,1.85889015,67714.0,67707.0,0.000924]
[1721705866228,1.033851,67708.0,67707.0,0.000924]
[1721705866429,1.28262774,67708.0,67707.0,0.000924]
[1721705866624,1.28262774,67708.0,67707.0,0.062024]
[1721705867725,1.28262774,67708.0,67707.0,0.064024]
[1721705867726,1.28362774,67708.0,67707.0,0.064024]
[1721705867899,1.28362774,67708.0,67707.0,0.062024]
[1721705867900,1.28251351,67708.0,67707.0,0.062024]
[1721705868309,1.28351351,67708.0,67707.0,0.064024]
[1721705869006,1.28451351,67708.0,67707.0,0.070024]
[1721705869209,1.43381853,67708.0,67707.0,0.150524]
[1721705869409,1.28351351,67708.0,67707.0,0.144524]
[1721705869613,1.28351351,67708.0,67707.0,0.002924]
[1721705869818,1.43381853,67708.0,67707.0,0.008924]
[1721705870199,1.28451351,67708.0,67707.0,0.008924]
[1721705870410,1.42570874,67708.0,67707.0,0.008924]
[1721705870612,1.42470874,67708.0,67707.0,0.006924]
[1721705871076,1.42473035,67708.0,67707.0,0.006924]
[1721705871227,1.42473035,67708.0,67707.0,0.008924]
[1721705871409,1.43294961,67708.0,67707.0,0.089424]
[1721705871616,1.28253512,67708.0,67707.0,0.081424]
[1721705872132,1.28253512,67708.0,67707.0,0.085424]
[1721705872541,1.28253512,67708.0,67707.0,0.081424]
[1721705872994,1.28263512,67708.0,67707.0,0.084424]
[1721705874107,1.28210737,67708.0,67707.0,0.084424]
[1721705876775,1.68845342,67708.0,67707.0,0.003924]
[1721705877337,1.61649705,67708.0,67707.0,0.003924]
[1721705877536,1.68849001,67708.0,67707.0,0.002924]
[1721705878360,1.69910511,67708.0,67707.0,0.002924]
[1721705878918,1.69910511,67708.0,67707.0,0.000924]
[1721705879283,1.69910511,67708.0,67707.0,0.001924]
[1721705879688,1.69710511,67708.0,67707.0,0.000924]
[1721705879928,1.69910511,67708.0,67707.0,0.000924]
[1721705880136,1.95010511,67708.0,67707.0,0.000924]
[1721705880386,1.95010511,67708.0,67702.0,0.0821]
[1721705880387,0.147703,67703.0,67702.0,0.0821]
[1721705880570,0.147703,67703.0,67701.0,0.002]
[1721705880571,0.443118,67702.0,67701.0,0.002]
[1721705880776,1.50130303,67702.0,67701.0,0.002]
[1721705882356,1.51675274,67702.0,67701.0,0.002]
[1721705882846,1.22134074,67702.0,67701.0,0.1463]
[1721705883055,1.14939171,67702.0,67701.0,0.1463]
[1721705883272,1.22161876,67702.0,67701.0,0.1463]
[1721705883999,1.00250676,67702.0,67701.0,0.17393771]
[1721705884203,0.98805705,67702.0,67701.0,0.17793771]
[1721705884430,1.12075961,67702.0,67701.0,0.17793771]
[1721705884627,0.98805705,67702.0,67701.0,0.17793771]
[1721705884833,0.98805705,67702.0,67701.0,0.1503]
[1721705885003,1.12075961,67702.0,67701.0,0.1503]
[1721705885207,1.28346905,67702.0,67701.0,0.1503]
[1721705885475,0.98805705,67702.0,67701.0,0.1503]
[1721705885673,0.98816172,67702.0,67701.0,0.1503]
[1721705885829,0.98816172,67702.0,67701.0,0.17793771]
[1721705886032,0.98816172,67702.0,67701.0,0.1503]
[1721705887123,1.28357372,67702.0,67701.0,0.1503]
[1721705888732,1.211242,67702.0,67701.0,0.1503]
[1721705888879,1.28358811,67702.0,67701.0,0.1503]
[1721705890943,1.12087261,67702.0,67701.0,0.1503]
[1721705891347,1.41628461,67702.0,67701.0,0.1503]
[1721705891554,1.12087261,67702.0,67701.0,0.17793771]
[1721705891959,1.12101781,67702.0,67701.0,0.17793771]
[1721705892102,1.41642981,67702.0,67701.0,0.17793771]
[1721705892302,1.12101781,67702.0,67701.0,0.17793771]
[1721705892675,1.28372191,67702.0,67701.0,0.17793771]
[1721705893369,1.41643143,67702.0,67701.0,0.17793771]
[1721705895091,1.28372191,67702.0,67701.0,0.17793771]
[1721705895524,1.28367418,67702.0,67701.0,0.17793771]
[1721705896413,1.41642934,67702.0,67701.0,0.17793771]
[1721705897376,1.28370413,67702.0,67701.0,0.17793771]
[1721705898011,1.28381951,67702.0,67701.0,0.17793771]
[1721705898548,1.28381982,67702.0,67701.0,0.17793771]
[1721705901567,1.2838953,67702.0,67701.0,0.17793771]
[1721705904344,0.9121833,67702.0,67701.0,0.17793771]
[1721705904523,0.101,67702.0,67701.0,0.19842185]
[1721705904750,0.32170722,67702.0,67701.0,0.19842185]
[1721705904899,0.32170722,67702.0,67701.0,0.18734962]
[1721705905101,0.32171071,67702.0,67701.0,0.18734962]
[1721705905304,0.248706,67702.0,67701.0,0.18734962]
[1721705905509,0.544118,67702.0,67701.0,0.18734962]
[1721705905825,0.544118,67702.0,67701.0,0.17934962]
[1721705905826,0.543118,67702.0,67701.0,0.17934962]
[1721705906000,0.544118,67702.0,67701.0,0.18334962]
[1721705906585,0.545118,67702.0,67701.0,0.19134962]
[1721705906788,0.102,67702.0,67701.0,0.21317495]
[1721705906987,0.102,67702.0,67701.0,0.19134962]
[1721705907216,0.21270261,67702.0,67701.0,0.19134962]
[1721705907416,0.102,67702.0,67701.0,0.19134962]
[1721705907567,0.249706,67702.0,67701.0,0.19134962]
[1721705908058,0.36040894,67702.0,67701.0,0.19134962]
[1721705908395,0.545118,67702.0,67701.0,0.19134962]
[1721705908928,0.545118,67702.0,67701.0,0.18193771]
[1721705910011,0.84053,67702.0,67701.0,0.18193771]
[1721705920236,0.545118,67702.0,67701.0,0.18193771]
[1721705921505,0.102,67702.0,67701.0,0.18193771]
[1721705921710,0.21263841,67702.0,67701.0,0.18193771]
[1721705921914,0.21263841,67702.0,67701.0,0.19132939]
[1721705922115,0.102,67702.0,67701.0,0.19132939]
[1721705922325,0.19051621,67702.0,67701.0,0.19132939]
[1721705922686,0.63363421,67702.0,67701.0,0.19132939]
[1721705922886,0.65575641,67702.0,67701.0,0.19132939]
[1721705923192,0.545118,67702.0,67701.0,0.19122617]
[1721705923397,0.655749,67702.0,67701.0,0.19122617]
[1721705923625,0.655749,67702.0,67701.0,0.18193771]
[1721705924415,0.655749,67702.0,67701.0,0.19122617]
[1721705926937,0.65574671,67702.0,67701.0,0.19122617]
[1721705927501,0.545118,67702.0,67701.0,0.19122617]
[1721705929608,0.545118,67702.0,67701.0,0.18193771]
[1721705932453,0.61855231,67702.0,67701.0,0.19122617]
[1721705932668,0.545118,67702.0,67701.0,0.19215017]
[1721705932883,0.61855823,67702.0,67701.0,0.19215017]
[1721705934834,0.545118,67702.0,67701.0,0.19215017]
[1721705935037,0.249706,67702.0,67701.0,0.19215017]
[1721705935415,0.545118,67702.0,67701.0,0.19215017]
[1721705936404,0.65587933,67702.0,67701.0,0.19215017]
[1721705939084,0.65592552,67702.0,67701.0,0.19215017]
[1721705939485,0.65592874,67702.0,67701.0,0.19215017]
[1721705940277,0.21281074,67702.0,67701.0,0.19215017]
[1721705940477,0.102,67702.0,67701.0,0.19215017]
[1721705940856,0.65592874,67702.0,67701.0,0.19215017]
[1721705941387,0.65593227,67702.0,67701.0,0.19215017]
[1721705942014,0.545118,67702.0,67701.0,0.19215017]
[1721705943807,0.102,67702.0,67701.0,0.19215017]
[1721705944220,0.11282984,67702.0,67701.0,0.19215017]
[1721705944423,0.21282984,67702.0,67701.0,0.19215017]
[1721705944638,0.102,67702.0,67701.0,0.19215017]
[1721705947279,0.11285227,67702.0,67701.0,0.19215017]
[1721705947389,0.21285227,67702.0,67701.0,0.19215017]
[1721705947597,0.21285007,67702.0,67701.0,0.19215017]
[1721705948026,0.21285007,67702.0,67701.0,0.93069017]
[1721705948027,0.04634067,67702.0,67701.0,0.93069017]
[1721705948230,0.04634106,67702.0,67701.0,0.93069017]
[1721705948460,0.04684106,67702.0,67701.0,0.93069017]
[1721705948691,0.0025,67702.0,67701.0,0.93069017]
[1721705948892,0.069011,67702.0,67701.0,0.93069017]
[1721705949064,0.068011,67702.0,67701.0,0.92669017]
[1721705949301,0.069011,67702.0,67701.0,0.19815017]
[1721705949516,0.149206,67702.0,67701.0,0.19015017]
[1721705949945,0.150206,67702.0,67701.0,0.20215017]
[1721705950367,0.74103,67702.0,67701.0,0.20215017]
[1721705950572,1.04807897,67702.0,67701.0,0.20215017]
[1721705950771,0.91506115,67702.0,67701.0,0.19286171]
[1721705951197,0.91506193,67702.0,67701.0,0.19286171]
[1721705953623,0.84103,67702.0,67701.0,0.19286171]
[1721705953789,0.91484077,67702.0,67701.0,0.19286171]
[1721705956653,0.91080465,67702.0,67701.0,0.19286171]
[1721705957059,0.91080428,67702.0,67701.0,0.19286171]
[1721705960223,0.91083978,67702.0,67701.0,0.19286171]
[1721705963721,0.92628949,67702.0,67701.0,0.19286171]
[1721705963947,0.92630498,67702.0,67701.0,0.19286171]
[1721705967000,1.05930384,67702.0,67701.0,0.19286171]
[1721705968143,0.92630498,67702.0,67701.0,0.19286171]
[1721705968699,1.05925543,67702.0,67701.0,0.19286171]
[1721705969475,1.05846995,67702.0,67701.0,0.19286171]
[1721705969879,0.92548768,67702.0,67701.0,0.19286171]
[1721705970078,1.05846995,67702.0,67701.0,0.19286171]
[1721705970515,0.92548768,67702.0,67701.0,0.19286171]
[1721705972677,0.92588965,67702.0,67701.0,0.19286171]
[1721705974782,1.05887801,67702.0,67701.0,0.19286171]
[1721705975735,0.98946643,67702.0,67701.0,0.19286171]
[1721705975888,1.05955184,67702.0,67701.0,0.19286171]
[1721705976137,0.98946643,67702.0,67701.0,0.19286171]
[1721705976316,1.05955184,67702.0,67701.0,0.19286171]
[1721705977509,0.92656512,67702.0,67701.0,0.19286171]
[1721705977711,1.05955184,67702.0,67701.0,0.19286171]
[1721705978166,0.92656512,67702.0,67701.0,0.19286171]
[1721705978571,1.05955184,67702.0,67701.0,0.19286171]
[1721705978780,0.85647971,67702.0,67701.0,0.19286171]
[1721705978980,0.63124622,67702.0,67701.0,0.19286171]
[1721705981237,0.63124622,67702.0,67701.0,0.20215617]
[1721705981428,0.63124622,67702.0,67701.0,0.19286171]
[1721705981956,0.26565571,67702.0,67701.0,0.19286171]
[1721705982140,0.33619629,67702.0,67701.0,0.19286171]
[1721705982313,0.33619629,67702.0,67701.0,0.2021532]
[1721705982524,0.33619629,67702.0,67701.0,0.19286171]
[1721705982937,0.33619629,67702.0,67701.0,0.2021532]
[1721705983561,0.18849029,67702.0,67701.0,0.2021532]
[1721705983786,0.23619629,67702.0,67701.0,0.23983058]
[1721705983976,0.18849029,67702.0,67701.0,0.23983058]
[1721705984176,0.33619629,67702.0,67701.0,0.23983058]
[1721705984381,0.18849029,67702.0,67701.0,0.23983058]
[1721705985061,0.11794971,67702.0,67701.0,0.23983058]
[1721705985255,0.18904667,67702.0,67701.0,0.2021532]
[1721705985456,0.11794971,67702.0,67701.0,0.2021532]
[1721705986621,0.01794971,67702.0,67701.0,0.2021532]
[1721705987024,0.08862749,67702.0,67701.0,0.2021532]
[1721705988189,0.08886249,67702.0,67701.0,0.3498612]